fUST/lending_fUST_20250627
["ID","MTS","AMOUNT","RATE_DAILY","PERIOD"]
[367937249,1750972040224,-460.0,0.00021643,2]
[367937250,1750972040248,-461.17561917,0.00021643,2]
[367937251,1750972040273,-460.0,0.00021643,2]
[367937252,1750972040297,-460.0,0.00021643,2]
[367937253,1750972040321,-460.0,0.00021643,2]
[367937254,1750972040344,-460.0,0.00021643,2]
[367937255,1750972040366,-460.0,0.00021643,2]
[367937256,1750972040385,-490.22723709,0.00021643,2]
[367937257,1750972040406,-460.0,0.00021643,2]
[367937258,1750972040426,-460.0,0.00021643,2]
[367937259,1750972040448,-460.0,0.00021643,2]
[367937260,1750972040468,-519.86,0.00021643,2]
[367937261,1750972040489,-4474.03,0.00021643,2]
[367937262,1750972040510,-460.0,0.00021643,2]
[367937263,1750972040531,-460.0,0.00021643,2]
[367937264,1750972040551,-460.0,0.00021643,2]
[367937265,1750972040572,-460.0,0.00021643,2]
[367937266,1750972040592,-460.0,0.00021643,2]
[367937267,1750972040614,-527.29,0.00021643,2]
[367937268,1750972040634,-460.0,0.00021643,2]
[367937269,1750972040654,-460.0,0.00021643,2]
[367937270,1750972040674,-460.0,0.00021643,2]
[367937271,1750972040695,-460.0,0.00021643,2]
[367937272,1750972040715,-460.0,0.00021643,2]
[367937273,1750972040735,-460.0,0.00021643,2]
[367937274,1750972040758,-2005.19,0.00021643,2]
[367937275,1750972040778,-461.21985364,0.00021643,2]
[367937276,1750972040799,-477.66,0.00021643,2]
[367937277,1750972040820,-460.0,0.00021643,2]
[367937278,1750972040842,-460.0,0.00021643,2]
[367937279,1750972040864,-2496.18,0.00021643,2]
[367937280,1750972040884,-460.0,0.00021643,2]
[367937281,1750972040905,-460.0,0.00021643,2]
[367937282,1750972040927,-545.28,0.00021643,2]
[367937283,1750972040958,-460.59274665,0.00021643,2]
[367937284,1750972040984,-460.0,0.00021643,2]
[367937285,1750972041007,-460.0,0.00021643,2]
[367937286,1750972041030,-440.0,0.00021643,2]
[367937287,1750972041051,-460.0,0.00021643,2]
[367937288,1750972041076,-430.0,0.00021643,2]
[367937289,1750972041101,-460.0,0.00021643,2]
[367937290,1750972041123,-460.0,0.00021643,2]
[367937291,1750972041144,-469.78,0.00021643,2]
[367937292,1750972041167,-2791.99,0.00021643,2]
[367937293,1750972041191,-2791.99,0.00021643,2]
[367937294,1750972041213,-430.0,0.00021643,2]
[367937295,1750972041235,-2791.99,0.00021643,2]
[367937296,1750972041258,-2791.99,0.00021643,2]
[367937297,1750972041280,-2791.99,0.00021643,2]
[367937298,1750972041302,-460.0,0.00021643,2]
[367937299,1750972041325,-2791.99,0.00021643,2]
[367937300,1750972041349,-2393.51,0.00021643,2]
[367937301,1750972041372,-2791.99,0.00021643,2]
[367937302,1750972041395,-2791.99,0.00021643,2]
[367937303,1750972041416,-460.0,0.00021643,2]
[367937304,1750972041438,-460.0,0.00021643,2]
[367937305,1750972041460,-460.0,0.00021643,2]
[367937306,1750972041482,-460.0,0.00021643,2]
[367937307,1750972041505,-460.0,0.00021643,2]
[367937308,1750972041527,-460.0,0.00021643,2]
[367937309,1750972041552,-3584.75,0.00021643,2]
[367937310,1750972041575,-460.0,0.00021643,2]
[367937311,1750972041597,-460.0,0.00021643,2]
[367937312,1750972041620,-460.0,0.00021643,2]
[367937313,1750972041641,-460.0,0.00021643,2]
[367937314,1750972041662,-460.0,0.00021643,2]
[367937315,1750972041686,-460.0,0.00021643,2]
[367937316,1750972041708,-460.0,0.00021643,2]
[367937317,1750972041729,-460.0,0.00021643,2]
[367937318,1750972041750,-599.41327932,0.00021643,2]
[367937319,1750972041773,-460.0,0.00021643,2]
[367937320,1750972041796,-460.0,0.00021643,2]
[367937321,1750972041818,-460.0,0.00021643,2]
[367937322,1750972041841,-1082.01,0.00021643,2]
[367937323,1750972041864,-1719.83,0.00021643,2]
[367937324,1750972041885,-460.0,0.00021643,2]
[367937325,1750972041907,-604.74,0.00021643,2]
[367937326,1750972041927,-460.0,0.00021643,2]
[367937327,1750972041954,-527.28,0.00021643,2]
[367937328,1750972041976,-709.33,0.00021643,2]
[367937329,1750972041997,-460.0,0.00021643,2]
[367937330,1750972042018,-460.0,0.00021643,2]
[367937331,1750972042040,-1660.67,0.00021643,2]
[367937332,1750972042061,-460.0,0.00021643,2]
[367937333,1750972042082,-460.0,0.00021643,2]
[367937334,1750972042110,-546.97,0.00021643,2]
[367937335,1750972042132,-615.19,0.00021643,2]
[367937336,1750972042153,-260.37527939,0.00021643,2]
[367937337,1750972042174,-460.0,0.00021643,2]
[367937338,1750972042195,-484.67166152,0.00021643,2]
[367937339,1750972042217,-460.0,0.00021643,2]
[367937340,1750972042238,-460.0,0.00021643,2]
[367937341,1750972042259,-460.0,0.00021643,2]
[367937342,1750972042281,-493.1,0.00021643,2]
[367937343,1750972042302,-460.0,0.00021643,2]
[367937344,1750972042323,-460.0,0.00021643,2]
[367937345,1750972042345,-498.71,0.00021643,2]
[367937346,1750972042366,-460.0,0.00021643,2]
[367937347,1750972042388,-460.0,0.00021643,2]
[367937348,1750972042410,-709.44,0.00021643,2]
[367937349,1750972042431,-460.0,0.00021643,2]
[367937350,1750972042452,-559.61,0.00021643,2]
[367937351,1750972042474,-460.0,0.00021643,2]
[367937352,1750972042498,-298.22835983,0.00021643,2]
[367937353,1750972042519,-460.0,0.00021643,2]
[367937354,1750972042543,-1737.61,0.00021643,2]
[367937355,1750972042564,-460.0,0.00021643,2]
[367937356,1750972042586,-460.0,0.00021643,2]
[367937357,1750972042608,-849.6,0.00021643,2]
[367937358,1750972042630,-460.0,0.00021643,2]
[367937359,1750972042652,-633.99,0.00021643,2]
[367937360,1750972042674,-504.08,0.00021643,2]
[367937361,1750972042697,-1585.09,0.00021643,2]
[367937362,1750972042719,-3727.29,0.00021643,2]
[367937363,1750972042741,-460.0,0.00021643,2]
[367937364,1750972042763,-460.0,0.00021643,2]
[367937365,1750972042786,-460.0,0.00021643,2]
[367937366,1750972042808,-460.0,0.00021643,2]
[367937367,1750972042828,-460.0,0.00021643,2]
[367937368,1750972042851,-2394.07,0.00021643,2]
[367937369,1750972042872,-460.0,0.00021643,2]
[367937370,1750972042892,-460.0,0.00021643,2]
[367937371,1750972042914,-795.94,0.00021643,2]
[367937372,1750972042936,-255.48951049,0.00021643,2]
[367937373,1750972042956,-460.0,0.00021643,2]
[367937374,1750972042978,-460.0,0.00021643,2]
[367937375,1750972042999,-857.12,0.00021643,2]
[367937376,1750972043021,-537.6784803,0.00021643,2]
[367937377,1750972043042,-460.0,0.00021643,2]
[367937378,1750972043065,-482.52,0.00021643,2]
[367937379,1750972043092,-460.0,0.00021643,2]
[367937380,1750972043117,-460.0,0.00021643,2]
[367937381,1750972043140,-460.0,0.00021643,2]
[367937382,1750972043165,-564.13,0.00021643,2]
[367937383,1750972043188,-1064.27,0.00021643,2]
[367937384,1750972043209,-460.0,0.00021643,2]
[367937385,1750972043231,-460.0,0.00021643,2]
[367937386,1750972043252,-460.0,0.00021643,2]
[367937387,1750972043275,-404.20640939,0.00021643,2]
[367937388,1750972043304,-460.0,0.00021643,2]
[367937389,1750972043337,-1116.49,0.00021643,2]
[367937390,1750972043361,-460.0,0.00021643,2]
[367937391,1750972043382,-460.0,0.00021643,2]
[367937392,1750972043614,-1018.24,0.00021643,2]
[367937393,1750972043636,-460.0,0.00021643,2]
[367937394,1750972043658,-460.0,0.00021643,2]
[367937395,1750972043681,-893.09,0.00021643,2]
[367937396,1750972043705,-4589.87,0.00021643,2]
[367937397,1750972043727,-320.0,0.00021643,2]
[367937398,1750972043748,-460.0,0.00021643,2]
[367937399,1750972043770,-460.0,0.00021643,2]
[367937400,1750972043792,-460.0,0.00021643,2]
[367937401,1750972043813,-535.84,0.00021643,2]
[367937402,1750972043833,-460.0,0.00021643,2]
[367937403,1750972043855,-494.68,0.00021643,2]
[367937404,1750972043877,-831.03,0.00021643,2]
[367937405,1750972043898,-460.0,0.00021643,2]
[367937406,1750972043920,-460.0,0.00021643,2]
[367937407,1750972043943,-886.62,0.00021643,2]
[367937408,1750972043964,-460.0,0.00021643,2]
[367937409,1750972043985,-763.29,0.00021643,2]
[367937410,1750972044007,-460.0,0.00021643,2]
[367937411,1750972044029,-460.0,0.00021643,2]
[367937412,1750972044051,-1172.89,0.00021643,2]
[367937413,1750972044071,-460.0,0.00021643,2]
[367937414,1750972044096,-460.0,0.00021643,2]
[367937415,1750972044118,-460.0,0.00021643,2]
[367937416,1750972044140,-1469.94,0.00021643,2]
[367937417,1750972044162,-460.0,0.00021643,2]
[367937418,1750972044185,-460.0,0.00021643,2]
[367937419,1750972044205,-460.0,0.00021643,2]
[367937420,1750972044229,-460.0,0.00021643,2]
[367937421,1750972044250,-460.0,0.00021643,2]
[367937422,1750972044271,-256.02202701,0.00021643,2]
[367937423,1750972044296,-460.0,0.00021643,2]
[367937424,1750972044318,-460.0,0.00021643,2]
[367937425,1750972044343,-3271.98,0.00021643,2]
[367937426,1750972044364,-461.22698844,0.00021643,2]
[367937427,1750972044385,-460.0,0.00021643,2]
[367937428,1750972044408,-1909.14,0.00021643,2]
[367937429,1750972044430,-631.57,0.00021643,2]
[367937430,1750972044452,-922.08,0.00021643,2]
[367937431,1750972044473,-460.0,0.00021643,2]
[367937432,1750972044495,-460.0,0.00021643,2]
[367937433,1750972044517,-460.0,0.00021643,2]
[367937434,1750972044540,-460.0,0.00021643,2]
[367937435,1750972044561,-460.0,0.00021643,2]
[367937436,1750972044584,-1119.69,0.00021643,2]
[367937437,1750972044605,-460.0,0.00021643,2]
[367937438,1750972044627,-460.0,0.00021643,2]
[367937439,1750972044859,-2504.66,0.00021643,2]
[367937440,1750972044882,-460.0,0.00021643,2]
[367937441,1750972044904,-460.0,0.00021643,2]
[367937442,1750972044926,-460.0,0.00021643,2]
[367937443,1750972044948,-460.0,0.00021643,2]
[367937444,1750972044970,-460.0,0.00021643,2]
[367937445,1750972044993,-423.48206686,0.00021643,2]
[367937446,1750972045017,-773.54,0.00021643,2]
[367937447,1750972045039,-460.0,0.00021643,2]
[367937448,1750972045064,-460.0,0.00021643,2]
[367937449,1750972045087,-460.0,0.00021643,2]
[367937450,1750972045115,-200.0,0.00021643,10]
[367937451,1750972045138,-500.0,0.00021643,2]
[367937452,1750972045161,-167.87988135,0.00021662,2]
[367937453,1750972045184,-150.0,0.00021716,2]
[367937454,1750972045205,-150.0,0.00021716,2]
[367937455,1750972045229,-168.0,0.00021721,2]
[367937456,1750972045250,-800.0,0.0002175,2]
[367937457,1750972045273,-2791.99,0.00021779,2]
[367937458,1750972045293,-127742.60349665,0.0002178,2]
[367937459,1750972045314,-167.87988135,0.00021781,2]
[367937460,1750972045335,-1165.39402412,0.00021789,20]
[367937461,1750972045356,-800.0,0.00021791,2]
[367937462,1750972045377,-1360.505415,0.0002184,5]
[367937463,1750972045400,-432.7968027,0.00021843,2]
[367937464,1750972045421,-1000.0,0.0002186,5]
[367937465,1750972045442,-1000.0,0.0002188,5]
[367937466,1750972045466,-2791.99,0.00021899,2]
[367937467,1750972045488,-167.87988135,0.000219,2]
[367937468,1750972045509,-1000.0,0.000219,5]
[367937469,1750972045529,-2506.8,0.000219,2]
[367937470,1750972045556,-562.331171,0.000219,6]
[367937471,1750972045577,-640.0,0.000219,2]
[367937472,1750972045598,-151.0,0.000219,4]
[367937473,1750972045620,-2791.99,0.00021916,2]
[367937474,1750972045642,-2791.99,0.00021916,2]
[367937475,1750972045666,-2791.99,0.00021916,2]
[367937476,1750972045688,-2791.99,0.00021916,2]
[367937477,1750972045712,-2791.99,0.00021916,2]
[367937478,1750972045735,-2791.99,0.00021916,2]
[367937479,1750972045756,-2791.99,0.00021916,2]
[367937480,1750972045780,-2791.99,0.00021916,2]
[367937481,1750972045801,-2791.99,0.00021916,2]
[367937482,1750972045822,-273.60858675,0.00021917,2]
[367937483,1750972045842,-460.0,0.00021917,2]
[367937484,1750972045863,-460.0,0.00021917,2]
[367937485,1750972045884,-460.0,0.00021917,2]
[367937486,1750972045905,-460.0,0.00021917,2]
[367937487,1750972045926,-151.0,0.00021917,2]
[367937488,1750972045948,-460.0,0.00021917,2]
[367937489,1750972045969,-460.0,0.00021917,2]
[367937490,1750972045989,-460.0,0.00021917,2]
[367937491,1750972046010,-443.29778535,0.00021917,2]
[367937492,1750972046030,-460.0,0.00021917,2]
[367937493,1750972046050,-500.0,0.00021917,2]
[367937494,1750972046070,-502.54535726,0.00021917,2]
[367937495,1750972046091,-460.0,0.00021917,2]
[367937496,1750972046115,-460.0,0.00021917,2]
[367937497,1750972046136,-460.0,0.00021917,2]
[367937498,1750972046156,-460.0,0.00021917,2]
[367937499,1750972046178,-460.0,0.00021917,2]
[367937500,1750972046198,-460.0,0.00021917,2]
[367937501,1750972046219,-460.0,0.00021917,2]
[367937502,1750972046239,-460.0,0.00021917,2]
[367937503,1750972046260,-460.0,0.00021917,2]
[367937504,1750972046281,-460.0,0.00021917,2]
[367937505,1750972046302,-439.8095611,0.00021917,2]
[367937506,1750972046323,-189.43911848,0.00021917,2]
[367937507,1750972046342,-460.0,0.00021917,2]
[367937508,1750972046363,-460.0,0.00021917,2]
[367937509,1750972046384,-460.0,0.00021917,2]
[367937510,1750972046404,-189.97514257,0.00021917,2]
[367937511,1750972046424,-460.0,0.00021917,2]
[367937512,1750972046445,-460.0,0.00021917,2]
[367937513,1750972046466,-460.0,0.00021917,2]
[367937514,1750972046487,-460.0,0.00021917,2]
[367937515,1750972046508,-460.0,0.00021917,2]
[367937516,1750972046529,-460.0,0.00021917,2]
[367937517,1750972046549,-460.0,0.00021917,2]
[367937518,1750972046570,-460.0,0.00021917,2]
[367937519,1750972046590,-460.0,0.00021917,2]
[367937520,1750972046610,-460.0,0.00021917,2]
[367937521,1750972046630,-460.0,0.00021917,2]
[367937522,1750972046649,-460.0,0.00021917,2]
[367937523,1750972046670,-460.0,0.00021917,2]
[367937524,1750972046691,-460.0,0.00021917,2]
[367937525,1750972046712,-460.0,0.00021917,2]
[367937526,1750972046732,-460.0,0.00021917,2]
[367937527,1750972046753,-400.0,0.00021917,2]
[367937528,1750972046775,-460.0,0.00021917,2]
[367937529,1750972046795,-460.0,0.00021917,2]
[367937530,1750972046814,-460.0,0.00021917,2]
[367937531,1750972046834,-304.81,0.00021917,2]
[367937532,1750972046854,-467.98695914,0.00021917,2]
[367937533,1750972046876,-460.0,0.00021917,2]
[367937534,1750972046896,-460.0,0.00021917,2]
[367937535,1750972046916,-460.0,0.00021917,2]
[367937536,1750972046937,-169.57818605,0.00021917,2]
[367937537,1750972047309,-263.13301637,0.00021917,2]
[367937538,1750972047330,-460.0,0.00021917,2]
[367937539,1750972047351,-160.39837832,0.00021917,2]
[367937540,1750972047374,-460.0,0.00021917,2]
[367937541,1750972047394,-460.0,0.00021917,2]
[367937542,1750972047418,-460.0,0.00021917,2]
[367937543,1750972047439,-474.48,0.00021917,2]
[367937544,1750972047459,-460.0,0.00021917,2]
[367937545,1750972047479,-460.0,0.00021917,2]
[367937546,1750972047500,-460.0,0.00021917,2]
[367937547,1750972047520,-460.0,0.00021917,2]
[367937548,1750972047541,-466.7,0.00021917,2]
[367937549,1750972047562,-460.0,0.00021917,2]
[367937550,1750972047583,-460.0,0.00021917,2]
[367937551,1750972047603,-330.36101463,0.00021917,2]
[367937552,1750972047624,-460.0,0.00021917,2]
[367937553,1750972047647,-592.99,0.00021917,2]
[367937554,1750972047668,-345.30295542,0.00021917,2]
[367937555,1750972047689,-770.41,0.00021917,2]
[367937556,1750972047710,-460.0,0.00021917,2]
[367937557,1750972047730,-460.0,0.00021917,2]
[367937558,1750972047750,-460.0,0.00021917,2]
[367937559,1750972047771,-518.27996671,0.00021917,2]
[367937560,1750972047792,-460.0,0.00021917,2]
[367937561,1750972047813,-567.31,0.00021917,2]
[367937562,1750972047834,-500.0,0.00021917,2]
[367937563,1750972047854,-460.0,0.00021917,2]
[367937564,1750972047874,-460.0,0.00021917,2]
[367937565,1750972047895,-460.0,0.00021917,2]
[367937566,1750972047916,-460.0,0.00021917,2]
[367937567,1750972047937,-460.0,0.00021917,2]
[367937568,1750972047958,-460.0,0.00021917,2]
[367937569,1750972047979,-460.0,0.00021917,2]
[367937570,1750972047999,-460.0,0.00021917,2]
[367937571,1750972048020,-806.65,0.00021917,2]
[367937572,1750972048041,-460.0,0.00021917,2]
[367937573,1750972048061,-548.53,0.00021917,2]
[367937574,1750972048082,-460.0,0.00021917,2]
[367937575,1750972048104,-460.0,0.00021917,2]
[367937576,1750972048124,-460.0,0.00021917,2]
[367937577,1750972048144,-430.0,0.00021917,2]
[367937578,1750972048165,-733.26,0.00021917,2]
[367937579,1750972048185,-460.0,0.00021917,2]
[367937580,1750972048206,-375.02808046,0.00021917,2]
[367937581,1750972048227,-553.68,0.00021917,2]
[367937582,1750972048247,-487.16130312,0.00021917,2]
[367937583,1750972048267,-338.45663797,0.00021917,2]
[367937640,1750972232522,-168.0,0.00020405,2]
[367937642,1750972232532,-168.0,0.00020693,2]
[367937644,1750972232541,-168.0,0.0002075,2]
[367937646,1750972232551,-168.0,0.00021124,2]
[367937647,1750972232560,-61.45794095,0.00021543,2]
[367937741,1750972238534,-762.06811247,0.00021543,2]
[367937742,1750972238544,-573.736944,0.0002156,4]
[367937743,1750972238553,-2132.43,0.00021633,10]
[367937744,1750972238563,-1777.03,0.00021633,10]
[367937745,1750972238573,-1480.86,0.00021633,10]
[367937746,1750972238583,-300.0,0.00021642,2]
[367937747,1750972238592,-300.0,0.00021642,2]
[367937748,1750972238602,-213.72380786,0.00021643,2]
[367937749,1750972238611,-230.24506774,0.00021643,2]
[367937750,1750972238621,-836.92866116,0.00021643,2]
[367937751,1750972238631,-160.0,0.00021643,2]
[367937752,1750972238640,-460.0,0.00021643,2]
[367937753,1750972238650,-460.0,0.00021643,2]
[367937754,1750972238660,-460.0,0.00021643,2]
[367937755,1750972238669,-460.0,0.00021643,2]
[367937756,1750972238679,-460.0,0.00021643,2]
[367937757,1750972238688,-460.0,0.00021643,2]
[367937758,1750972238698,-460.0,0.00021643,2]
[367937759,1750972238708,-460.0,0.00021643,2]
[367937760,1750972238717,-928.23,0.00021643,2]
[367937761,1750972238728,-460.0,0.00021643,2]
[367937762,1750972238740,-152.45533417,0.00021643,2]
[367937763,1750972238749,-460.0,0.00021643,2]
[367937764,1750972238759,-460.0,0.00021643,2]
[367937765,1750972238768,-629.1,0.00021643,2]
[367937766,1750972238777,-343.78969584,0.00021643,2]
[367937767,1750972238787,-460.0,0.00021643,2]
[367937768,1750972238796,-460.0,0.00021643,2]
[367937769,1750972238805,-460.0,0.00021643,2]
[367937770,1750972238815,-460.0,0.00021643,2]
[367937771,1750972238824,-4287.61,0.00021643,2]
[367937772,1750972238833,-1921.64,0.00021643,2]
[367937773,1750972238843,-460.0,0.00021643,2]
[367937774,1750972238852,-460.0,0.00021643,2]
[367937775,1750972238861,-460.0,0.00021643,2]
[367937776,1750972238871,-376.4716147,0.00021643,2]
[367937777,1750972238880,-460.0,0.00021643,2]
[367937778,1750972238889,-460.0,0.00021643,2]
[367937779,1750972238899,-724.39,0.00021643,2]
[367937780,1750972238908,-460.0,0.00021643,2]
[367937781,1750972238917,-460.0,0.00021643,2]
[367937782,1750972238927,-460.0,0.00021643,2]
[367937783,1750972238936,-460.0,0.00021643,2]
[367937784,1750972238945,-591.14,0.00021643,2]
[367937785,1750972238955,-460.0,0.00021643,2]
[367937786,1750972238965,-460.0,0.00021643,2]
[367937787,1750972238974,-460.0,0.00021643,2]
[367937788,1750972238983,-460.0,0.00021643,2]
[367937789,1750972238992,-460.0,0.00021643,2]
[367937790,1750972239001,-460.0,0.00021643,2]
[367937791,1750972239010,-460.0,0.00021643,2]
[367937792,1750972239019,-460.0,0.00021643,2]
[367937793,1750972239028,-469.12819751,0.00021643,2]
[367937794,1750972239038,-333.33982744,0.00021643,2]
[367937795,1750972239047,-460.0,0.00021643,2]
[367937796,1750972239056,-1314.36,0.00021643,2]
[367937797,1750972239066,-460.0,0.00021643,2]
[367937798,1750972239075,-2392.17,0.00021643,2]
[367937799,1750972239084,-2293.78,0.00021643,2]
[367937800,1750972239094,-446.19311956,0.00021643,2]
[367937801,1750972239103,-460.0,0.00021643,2]
[367937802,1750972239112,-460.0,0.00021643,2]
[367937803,1750972239121,-460.0,0.00021643,2]
[367937804,1750972239131,-460.0,0.00021643,2]
[367937805,1750972239140,-460.0,0.00021643,2]
[367937806,1750972239149,-530.78,0.00021643,2]
[367937807,1750972239162,-537.50040917,0.00021643,2]
[367937808,1750972239171,-460.0,0.00021643,2]
[367937809,1750972239180,-3435.38,0.00021643,2]
[367937810,1750972239189,-460.0,0.00021643,2]
[367937811,1750972239199,-1036.93,0.00021643,2]
[367937812,1750972239208,-460.0,0.00021643,2]
[367937813,1750972239217,-460.0,0.00021643,2]
[367937814,1750972239227,-533.41,0.00021643,2]
[367937815,1750972239239,-1648.17,0.00021643,2]
[367937816,1750972239249,-460.0,0.00021643,2]
[367937817,1750972239259,-465.37962827,0.00021643,2]
[367937818,1750972239269,-460.0,0.00021643,2]
[367937819,1750972239278,-1163.62,0.00021643,2]
[367937820,1750972239287,-460.0,0.00021643,2]
[367937821,1750972239297,-460.0,0.00021643,2]
[367937822,1750972239306,-679.78,0.00021643,2]
[367937823,1750972239317,-460.0,0.00021643,2]
[367937824,1750972239328,-739.43,0.00021643,2]
[367937825,1750972239338,-753.72,0.00021643,2]
[367937826,1750972239350,-460.0,0.00021643,2]
[367937827,1750972239361,-568.52,0.00021643,2]
[367937828,1750972239372,-460.0,0.00021643,2]
[367937829,1750972239383,-156.39141325,0.00021643,2]
[367937830,1750972239393,-1058.35,0.00021643,2]
[367937831,1750972239404,-654.62,0.00021643,2]
[367937832,1750972239414,-460.0,0.00021643,2]
[367937833,1750972239425,-460.0,0.00021643,2]
[367937834,1750972239435,-295.99655748,0.00021643,2]
[367937835,1750972239444,-460.0,0.00021643,2]
[367937836,1750972239453,-460.0,0.00021643,2]
[367937837,1750972239463,-525.83,0.00021643,2]
[367937838,1750972239473,-505.32,0.00021643,2]
[367937839,1750972239483,-460.0,0.00021643,2]
[367937840,1750972239493,-460.0,0.00021643,2]
[367937841,1750972239502,-738.87,0.00021643,2]
[367937842,1750972239511,-1519.04,0.00021643,2]
[367937843,1750972239520,-472.56,0.00021643,2]
[367937844,1750972239530,-460.0,0.00021643,2]
[367937845,1750972239539,-460.0,0.00021643,2]
[367937846,1750972239548,-550.44,0.00021643,2]
[367937847,1750972239558,-460.0,0.00021643,2]
[367937848,1750972239568,-623.07,0.00021643,2]
[367937849,1750972239578,-545.43,0.00021643,2]
[367937850,1750972239587,-460.0,0.00021643,2]
[367937851,1750972239597,-460.0,0.00021643,2]
[367937852,1750972239607,-460.0,0.00021643,2]
[367937853,1750972239616,-589.38515784,0.00021643,2]
[367937854,1750972239625,-1494.14,0.00021643,2]
[367937855,1750972239634,-1494.14,0.00021643,2]
[367937856,1750972239644,-1494.14,0.00021643,2]
[367937857,1750972239653,-1494.14,0.00021643,2]
[367937858,1750972239663,-579.54,0.00021643,2]
[367937859,1750972239672,-1494.14,0.00021643,2]
[367937860,1750972239682,-624.14,0.00021643,2]
[367937861,1750972239691,-1494.14,0.00021643,2]
[367937862,1750972239701,-1494.14,0.00021643,2]
[367937863,1750972239717,-1494.14,0.00021643,2]
[367937864,1750972239732,-821.41,0.00021643,2]
[367937865,1750972239746,-1494.14,0.00021643,2]
[367937866,1750972239756,-1494.14,0.00021643,2]
[367937867,1750972239766,-1494.14,0.00021643,2]
[367937868,1750972239776,-842.54,0.00021643,2]
[367937869,1750972239786,-483.07,0.00021643,2]
[367937870,1750972239796,-460.0,0.00021643,2]
[367937871,1750972239806,-460.0,0.00021643,2]
[367937872,1750972239816,-514.72870394,0.00021643,2]
[367937873,1750972239825,-475.54302125,0.00021643,2]
[367937874,1750972239834,-855.88,0.00021643,2]
[367937875,1750972239844,-460.0,0.00021643,2]
[367937876,1750972239854,-460.0,0.00021643,2]
[367937877,1750972239863,-2294.32,0.00021643,2]
[367937878,1750972239872,-460.0,0.00021643,2]
[367937879,1750972239882,-1069.97,0.00021643,2]
[367937880,1750972239892,-460.0,0.00021643,2]
[367937881,1750972239901,-460.0,0.00021643,2]
[367937882,1750972239911,-589.56,0.00021643,2]
[367937883,1750972239921,-460.0,0.00021643,2]
[367937884,1750972239930,-460.0,0.00021643,2]
[367937885,1750972239939,-796.4,0.00021643,2]
[367937886,1750972239949,-160.0,0.00021643,2]
[367937887,1750972239959,-460.0,0.00021643,2]
[367937888,1750972239968,-814.2,0.00021643,2]
[367937889,1750972239978,-500.0,0.00021643,2]
[367937890,1750972239987,-500.0,0.00021643,2]
[367937891,1750972239997,-849.68,0.00021643,2]
[367937892,1750972240006,-500.0,0.00021643,2]
[367937893,1750972240015,-460.0,0.00021643,2]
[367937894,1750972240025,-460.0,0.00021643,2]
[367937895,1750972240034,-505.31,0.00021643,2]
[367937896,1750972240044,-460.0,0.00021643,2]
[367937897,1750972240054,-731.49,0.00021643,2]
[367937898,1750972240064,-460.0,0.00021643,2]
[367937899,1750972240073,-540.62,0.00021643,2]
[367937900,1750972240082,-460.0,0.00021643,2]